bitfinex/quotes_SOLUSD_20250118
["timestamp","ask_amount","ask_price","bid_price","bid_amount"]
[1737181894061,5.15875864,233.5,233.49,58.43119458]
[1737181894761,34.14839458,233.56,233.49,58.43119458]
[1737181894971,34.14839458,233.56,233.5,20.0]
[1737181895258,0.64200521,233.61,233.45,10.7085]
[1737181895259,34.14839458,233.54,233.45,34.14839458]
[1737181895458,34.14839458,233.56,233.47,34.14839458]
[1737181895666,34.14839458,233.56,233.49,34.14839458]
[1737181896034,34.14839458,233.6,233.52,20.0]
[1737181896240,34.14839458,233.6,233.52,4.2821]
[1737181896450,34.14839458,233.6,233.54,20.0]
[1737181896657,34.14839458,233.6,233.52,4.2821]
[1737181896658,34.14839458,233.64,233.56,20.0]
[1737181897036,13.1866,233.75,233.52,14.9878]
[1737181897037,34.14839458,233.62,233.57,20.0]
[1737181897238,34.14839458,233.64,233.59,20.0]
[1737181897443,34.14839458,233.66,233.61,20.0]
[1737181897642,34.14839458,233.68,233.63,20.0]
[1737181897871,34.14839458,233.7,233.62,34.14839458]
[1737181898043,34.14839458,233.7,233.65,20.0]
[1737181898363,0.063,233.74,233.71,20.0]
[1737181898535,34.14839458,233.72,233.61,36.41014151]
[1737181898745,34.14839458,233.62,233.53,34.14839458]
[1737181899644,0.64200521,233.72,233.49,2.31354266]
[1737181899645,34.14839458,233.64,233.58,20.0]
[1737181899965,34.14839458,233.64,233.59,4.281]
[1737181900637,34.14839458,233.64,233.6,20.0]
[1737181900839,34.14839458,233.7,233.61,34.14839458]
[1737181901060,34.14839458,233.7,233.64,20.0]
[1737181901452,34.14839458,233.68,233.64,20.0]
[1737181901771,34.14839458,233.68,233.59,38.42939458]
[1737181902451,34.14839458,233.7,233.64,20.0]
[1737181903464,34.14839458,233.68,233.64,20.0]
[1737181904674,34.14839458,233.68,233.63,4.2801]
[1737181904841,34.14839458,233.68,233.64,20.0]
[1737181905239,34.14839458,233.68,233.56,4.2815]
[1737181905485,34.14839458,233.58,233.48,34.14839458]
[1737181905767,34.14839458,233.58,233.44,4.2837]
[1737181905768,34.14839458,233.54,233.5,0.23]
[1737181906080,34.14839458,233.64,233.53,34.14839458]
[1737181906245,34.14839458,233.66,233.58,34.14839458]
[1737181906451,34.14839458,233.64,233.56,34.14839458]
[1737181906653,34.14839458,233.64,233.57,4.2813]
[1737181907953,34.14839458,233.64,233.57,20.0]
[1737181908154,34.14839458,233.61,233.57,20.0]
[1737181908454,21.82671497,233.9,233.57,20.0]
[1737181908755,34.14839458,233.65,233.59,20.0]
[1737181909352,34.14839458,233.63,233.55,4.2817]
[1737181909868,34.14839458,233.74,233.62,4.2804]
[1737181910049,34.14839458,233.76,233.66,34.14839458]
[1737181910440,34.14839458,233.74,233.66,34.14839458]
[1737181910654,3.10275017,233.73,233.66,34.14839458]
[1737181911364,3.10275017,233.73,233.67,20.0]
[1737181911752,34.14839458,233.74,233.67,20.0]
[1737181912258,34.14839458,233.74,233.67,24.2795]
[1737181913075,34.14839458,233.72,233.64,34.14839458]
[1737181913278,34.14839458,233.72,233.65,4.2797]
[1737181915358,34.14839458,233.74,233.65,4.2797]
[1737181915786,34.14839458,233.72,233.65,4.2797]
[1737181916582,4.278,233.75,233.67,34.14839458]
[1737181917154,20.0,233.72,233.6,4.2808]
[1737181917479,20.0,233.72,233.57,12.3195]
[1737181917480,3.10510813,233.74,233.69,34.14839458]
[1737181917684,37.25350271,233.74,233.65,34.14839458]
[1737181917858,3.10510813,233.74,233.67,34.14839458]
[1737181918179,34.14839458,233.68,233.59,34.14839458]
[1737181918390,34.14839458,233.7,233.61,34.14839458]
[1737181918678,4.2791,233.69,233.61,34.14839458]
[1737181919591,34.14839458,233.67,233.58,38.42939458]
[1737181920594,34.14839458,233.69,233.6,34.14839458]
[1737181920786,34.14839458,233.67,233.58,38.42939458]
[1737181921385,34.14839458,233.71,233.63,20.0]
[1737181921770,0.063,233.74,233.7,34.14839458]
[1737181922278,0.063,233.74,233.68,34.14839458]
[1737181922781,0.063,233.74,233.68,38.42769458]
[1737181922962,0.063,233.74,233.68,4.2793]
[1737181923162,0.063,233.74,233.68,38.42769458]
[1737181923395,34.14839458,233.72,233.64,4.2799]
[1737181923890,34.14839458,233.72,233.66,20.0]
[1737181924254,34.14839458,233.72,233.63,34.14839458]
[1737181924459,34.14839458,233.7,233.63,34.14839458]
[1737181924758,34.14839458,233.7,233.61,58.42889458]
[1737181924954,34.14839458,233.7,233.61,38.42889458]
[1737181925183,34.14839458,233.72,233.63,34.14839458]
[1737181925882,34.14839458,233.7,233.61,38.42889458]
[1737181926675,34.14839458,233.62,233.53,34.14839458]
[1737181926880,34.14839458,233.6,233.51,38.43079458]
[1737181927084,34.14839458,233.58,233.51,4.2824]
[1737181927896,34.14839458,233.58,233.51,38.43079458]
[1737181928070,34.14839458,233.64,233.58,20.0]
[1737181928264,34.14839458,233.71,233.61,34.14839458]
[1737181928494,34.14839458,233.71,233.63,34.14839458]
[1737181928665,34.14839458,233.75,233.65,34.14839458]
[1737181928865,34.14839458,233.75,233.66,4.2797]
[1737181929100,34.14839458,233.75,233.65,34.14839458]
[1737181929400,34.14839458,233.67,233.6,4.2807]
[1737181929585,34.14839458,233.63,233.54,34.14839458]
[1737181929897,34.14839458,233.63,233.52,34.14839458]
[1737181930297,34.14839458,233.53,233.5,23.0]
[1737181930475,34.14839458,233.51,233.5,23.0]
[1737181931492,34.14839458,233.51,233.5,22.5]
[1737181931704,37.28302352,233.51,233.5,22.5]
[1737181931999,3.13462894,233.51,233.5,22.5]
[1737181932183,11.33762028,233.51,233.5,22.5]
[1737181932771,45.48601486,233.51,233.5,22.5]
[1737181933181,11.33762028,233.51,233.5,22.5]
[1737181933384,22.96696952,233.51,233.5,22.5]
[1737181936374,9.48062404,233.64,233.53,20.0]
[1737181936577,9.48062404,233.64,233.6,34.14839458]
[1737181936776,20.0,233.59,233.5,22.5]
[1737181937070,34.14839458,233.54,233.5,22.5]
[1737181937271,34.14839458,233.52,233.5,22.5]
[1737181939382,38.43079458,233.52,233.5,22.5]
[1737181940772,72.57918916,233.52,233.5,22.5]
[1737181941406,4.283,233.48,233.32,34.14839458]
[1737181941575,34.14839458,233.4,233.32,34.14839458]
[1737181942501,34.14839458,233.4,233.3,4.2862]
[1737181942686,34.14839458,233.4,233.31,34.14839458]
[1737181943168,34.14839458,233.42,233.32,34.17839458]
[1737181943369,34.14839458,233.44,233.37,34.14839458]
[1737181944081,34.14839458,233.44,233.36,34.14839458]
[1737181945299,34.14839458,233.44,233.35,4.2852]
[1737181945508,34.14839458,233.44,233.35,38.43359458]
[1737181945799,34.14839458,233.46,233.4,20.0]
[1737181945977,34.14839458,233.48,233.41,34.14839458]
[1737181946309,34.14839458,233.48,233.39,34.14839458]
[1737181946604,34.14839458,233.48,233.4,4.2844]
[1737181946799,34.14839458,233.48,233.39,34.14839458]
[1737181947004,34.14839458,233.46,233.37,38.43329458]
[1737181947301,34.14839458,233.44,233.37,34.14839458]
[1737181948497,34.14839458,233.44,233.38,20.0]
[1737181948703,34.14839458,233.44,233.35,34.14839458]
[1737181949502,4.2833,233.47,233.32,0.03]
[1737181949503,21.1394375,233.38,233.32,0.03]
[1737181950198,14.9913,233.47,233.32,0.03]
[1737181950199,21.1394375,233.36,233.32,0.03]
[1737181950403,21.1394375,233.34,233.32,0.03]
[1737181950607,21.1394375,233.36,233.32,0.03]
[1737181951484,4.2845,233.4,233.32,0.03]
[1737181951485,34.37654567,233.35,233.32,0.03]
[1737181952289,54.37654567,233.33,233.32,0.03]
[1737181952489,34.37654567,233.33,233.32,0.03]
[1737181952792,36.09072367,233.33,233.32,0.03]
[1737181953904,1.714178,233.33,233.32,0.03]
[1737181954095,10.7066,233.5,233.32,0.03]
[1737181954096,34.37654567,233.48,233.35,20.0]
[1737181954402,34.37654567,233.64,233.48,20.0]
[1737181954403,34.37654567,233.54,233.48,20.0]
[1737181954698,4.2811,233.59,233.39,34.37654567]
[1737181954894,34.37654567,233.49,233.39,34.37654567]
[1737181955099,34.37654567,233.47,233.42,20.0]
[1737181955275,34.37654567,233.49,233.42,20.0]
[1737181955480,34.37654567,233.45,233.35,54.37654567]
[1737181956004,34.37654567,233.45,233.37,34.37654567]
[1737181956184,34.37654567,233.47,233.39,34.37654567]
[1737181957024,34.37654567,233.52,233.44,34.37654567]
[1737181957380,34.37654567,233.48,233.38,34.37654567]
[1737181957587,34.37654567,233.46,233.36,34.37654567]
[1737181957786,34.37654567,233.46,233.38,34.37654567]
[1737181957997,34.37654567,233.48,233.4,34.37654567]
[1737181958297,34.37654567,233.51,233.42,34.37654567]
[1737181958608,34.37654567,233.49,233.45,20.0]
[1737181958797,4.2813,233.57,233.45,20.0]
[1737181959101,34.37654567,233.53,233.47,20.0]
[1737181959307,34.37654567,233.55,233.49,20.0]
[1737181959479,34.37654567,233.55,233.34,0.64251107]
[1737181959684,34.37654567,233.53,233.44,34.37654567]
[1737181960183,34.37654567,233.54,233.47,20.0]
[1737181960392,34.37654567,233.52,233.42,34.37654567]
[1737181960589,34.37654567,233.54,233.46,34.37654567]
[1737181960907,34.37654567,233.56,233.48,34.37654567]
[1737181961124,34.37654567,233.58,233.5,34.37654567]
[1737181962189,20.0,233.64,233.51,4.2824]
[1737181962386,34.37654567,233.58,233.51,4.2824]
[1737181964008,34.37654567,233.63,233.54,34.37654567]
[1737181964191,34.37654567,233.63,233.56,34.37654567]
[1737181965410,34.37654567,233.63,233.59,20.0]
[1737181965582,34.37654567,233.73,233.61,34.37654567]
[1737181965791,5.5228,233.76,233.64,34.37654567]
[1737181965998,34.37654567,233.77,233.69,34.37654567]
[1737181966321,34.37654567,233.75,233.67,34.37654567]
[1737181966485,34.37654567,233.75,233.67,38.65594567]
[1737181967089,10.6923,233.82,233.59,10.7022]
[1737181967090,34.37654567,233.73,233.65,38.65644567]
[1737181967413,34.37654567,233.73,233.65,34.37654567]
[1737181967615,34.37654567,233.71,233.63,34.37654567]
[1737181967783,34.37654567,233.71,233.61,34.37654567]
[1737181967990,34.37654567,233.69,233.61,34.37654567]
[1737181968502,34.37654567,233.63,233.53,34.37654567]
[1737181968701,34.37654567,233.63,233.5,4.2826]
[1737181968913,34.37654567,233.61,233.53,34.37654567]
[1737181969118,34.37654567,233.63,233.53,34.37654567]
[1737181969906,34.37654567,233.63,233.55,34.37654567]
[1737181970211,34.37654567,233.63,233.55,38.65814567]
[1737181971012,34.37654567,233.63,233.55,34.37654567]
[1737181971212,34.37654567,233.61,233.53,34.37654567]
[1737181971401,34.37654567,233.59,233.51,34.37654567]
[1737181971602,34.37654567,233.59,233.52,20.0]
[1737181971800,34.37654567,233.57,233.48,34.37654567]
[1737181972010,34.37654567,233.55,233.46,34.37654567]
[1737181972495,34.37654567,233.55,233.47,4.2832]
[1737181972719,34.37654567,233.55,233.48,34.37654567]
[1737181972894,34.37654567,233.55,233.51,20.0]
[1737181973097,34.37654567,233.58,233.51,20.0]
[1737181973407,34.37654567,233.58,233.5,34.37654567]
[1737181973914,34.37654567,233.6,233.5,34.37654567]
[1737181974318,34.37654567,233.6,233.43,10.7095]
[1737181974319,4.281,233.59,233.52,34.37654567]
[1737181974697,7.45226749,233.59,233.52,34.37654567]
[1737181975099,7.45226749,233.59,233.5,34.37654567]
[1737181975817,4.281,233.59,233.5,34.37654567]
[1737181976194,21.09204143,233.77,233.5,34.37654567]
[1737181976195,34.37654567,233.66,233.57,34.37654567]
[1737181976487,34.37654567,233.66,233.59,34.37654567]
[1737181976687,34.37654567,233.64,233.55,34.37654567]
[1737181976988,34.37654567,233.64,233.57,34.37654567]
[1737181977202,34.37654567,233.67,233.59,34.37654567]
[1737181977407,34.37654567,233.73,233.65,34.37654567]
[1737181977608,34.37654567,233.73,233.63,34.37654567]
[1737181977925,4.2786,233.72,233.63,34.37654567]
[1737181978098,34.37654567,233.71,233.63,34.37654567]
[1737181979009,34.37654567,233.71,233.6,4.2806]
[1737181979010,34.37654567,233.69,233.59,34.37654567]
[1737181979212,34.37654567,233.67,233.57,4.2812]
[1737181979391,21.10046569,233.66,233.61,20.0]
[1737181979598,21.10046569,233.66,233.58,21.10046569]
[1737181980416,21.10046569,233.64,233.56,21.10046569]
[1737181981224,21.10046569,233.59,233.5,0.03]
[1737181981400,21.10046569,233.63,233.53,21.10046569]
[1737181981996,21.10046569,233.61,233.53,20.0]
[1737181982294,21.10046569,233.61,233.52,21.10046569]
[1737181982613,21.10046569,233.56,233.5,0.03]
[1737181982808,21.10046569,233.54,233.5,0.03]
[1737181982993,21.10046569,233.52,233.5,0.03]
[1737181983194,21.10046569,233.54,233.5,0.03]
[1737181983996,21.10046569,233.52,233.5,0.03]
[1737181984828,4.2824,233.51,233.5,0.03]
[1737181986216,21.4041,233.6,233.5,0.03]
[1737181986217,21.10046569,233.56,233.5,0.03]
[1737181986717,25.38196569,233.56,233.5,0.03]
[1737181986913,21.10046569,233.54,233.5,0.03]
[1737181987503,25.38196569,233.56,233.5,0.03]
[1737181988117,21.10046569,233.56,233.5,0.03]
[1737181989035,21.10046569,233.58,233.5,0.03]
[1737181989206,21.10046569,233.56,233.5,0.03]
[1737181989821,21.10046569,233.54,233.5,0.03]
[1737181990708,21.10046569,233.52,233.5,0.03]
[1737181991824,21.16346569,233.52,233.5,0.03]
[1737181992200,42.26393138,233.52,233.5,0.03]
[1737181992401,42.26393138,233.52,233.36,21.10046569]
[1737181992613,21.16346569,233.52,233.45,21.10046569]
[1737181992813,0.063,233.52,233.47,21.10046569]
[1737181993234,0.063,233.52,233.48,4.283]
[1737181993740,0.063,233.52,233.5,20.0]
[1737181993915,0.063,233.52,233.51,41.10046569]
[1737181994825,21.10046569,233.63,233.51,41.10046569]
[1737181995033,21.10046569,233.65,233.57,21.10046569]
[1737181995230,27.56814436,233.8,233.63,21.10046569]
[1737181995546,21.10046569,233.73,233.63,21.10046569]
[1737181996737,21.10046569,233.71,233.63,21.10046569]
[1737181997110,21.10046569,233.71,233.61,21.10046569]
[1737181997315,21.10046569,233.67,233.59,21.10046569]
[1737181997550,21.10046569,233.67,233.6,0.24]
[1737181997917,21.10046569,233.67,233.58,41.10046569]
[1737181998832,21.10046569,233.65,233.56,21.10046569]
[1737181999145,21.10046569,233.65,233.57,4.2813]
[1737182000738,31.79546569,233.76,233.58,21.10046569]
[1737182000739,21.10046569,233.67,233.58,21.10046569]
[1737182001726,21.10046569,233.7,233.61,41.10046569]
[1737182002242,3.18064629,233.66,233.61,41.10046569]
[1737182002447,3.18064629,233.66,233.65,20.0]
[1737182003353,0.063,233.74,233.65,41.10046569]
[1737182003521,21.10046569,233.9,233.76,20.0]
[1737182003727,0.063,233.92,233.89,20.0]
[1737182003931,33.9527072,234.01,233.91,21.10046569]
[1737182004123,12.85224151,234.01,233.91,21.10046569]
[1737182004323,12.85224151,234.01,233.85,28.0229]
[1737182004531,6.426121,233.92,233.85,28.0229]
[1737182005241,6.426121,233.92,233.88,20.0]
[1737182005540,6.426121,233.92,233.87,21.10046569]
[1737182005751,6.426121,233.92,233.85,25.37666569]
[1737182006738,27.52658669,233.92,233.85,25.37666569]
[1737182007045,6.426121,233.92,233.9,21.10046569]
[1737182007229,21.10046569,234.04,233.92,20.0]
[1737182007425,6.426121,233.94,233.93,21.10046569]
[1737182007630,6.426121,233.94,233.89,21.10046569]
[1737182007846,6.426121,233.94,233.81,6.06575037]
[1737182008037,6.426121,233.94,233.87,21.10046569]
[1737182008233,27.52658669,233.94,233.85,21.10046569]
[1737182008540,27.52658669,233.94,233.83,21.10046569]
[1737182008541,21.10046569,233.92,233.83,21.10046569]
[1737182008923,21.10046569,233.9,233.83,21.10046569]
[1737182009125,21.10046569,233.9,233.81,21.10046569]
[1737182009961,21.10046569,233.9,233.81,25.37726569]
[1737182010550,27.52658669,233.94,233.85,21.10046569]
[1737182011449,27.52658669,233.94,233.85,25.37656569]
[1737182012528,21.10046569,233.89,233.81,21.10046569]
[1737182013543,21.10046569,233.89,233.82,4.2767]
[1737182014741,21.10046569,233.83,233.69,10.6976]
[1737182014952,21.10046569,233.77,233.69,21.10046569]
[1737182015151,21.10046569,233.77,233.69,25.37956569]
[1737182015355,21.10046569,233.81,233.73,21.10046569]
[1737182015550,21.10046569,233.81,233.76,20.0]
[1737182015973,21.10046569,233.85,233.81,0.03]
[1737182016136,21.10046569,233.87,233.81,0.03]
[1737182016337,21.10046569,233.83,233.81,0.03]
[1737182016551,21.10046569,233.88,233.81,0.03]
[1737182016755,21.10046569,233.88,233.82,4.2767]
[1737182016932,21.10046569,233.88,233.81,24.3069]
[1737182017984,21.10046569,233.88,233.81,4.3069]
[1737182018139,21.10046569,233.9,233.85,20.0]
[1737182018339,21.10046569,233.92,233.85,20.0]
[1737182018547,21.10046569,233.96,233.88,21.10046569]
[1737182018762,21.16346569,233.98,233.91,20.0]
[1737182018959,21.10046569,233.96,233.91,20.0]
[1737182019260,21.10046569,233.94,233.89,20.0]
[1737182020034,21.10046569,233.94,233.9,4.2753]
[1737182020240,0.063,233.98,233.95,20.0]
[1737182020447,0.063,233.98,233.97,21.10046569]
[1737182020847,5.3921,233.98,233.97,21.10046569]
[1737182021374,0.063,233.98,233.97,21.10046569]
[1737182021941,21.10046569,234.09,234.0,20.0]
[1737182022159,0.063,234.1,233.98,4.2738]
[1737182022474,21.10046569,234.01,233.93,21.10046569]
[1737182022657,21.10046569,234.01,233.95,20.0]
[1737182023667,21.10046569,234.01,233.94,20.0]
[1737182023847,21.10046569,233.97,233.86,16.75585037]
[1737182024038,21.10046569,233.95,233.88,4.2756]
[1737182024655,21.10046569,233.95,233.87,33.74676569]
[1737182024847,21.10046569,233.95,233.9,20.0]
[1737182025043,21.10046569,234.01,233.94,20.0]
[1737182025250,21.10046569,234.01,233.93,21.10046569]
[1737182026168,21.10046569,234.08,234.02,20.0]
[1737182026758,21.10046569,234.06,233.97,21.10046569]
[1737182027168,21.16346569,234.1,234.04,20.0]
[1737182027345,0.063,234.1,234.05,21.10046569]
[1737182027749,0.063,234.1,234.05,25.37296569]
[1737182027964,0.063,234.1,234.08,20.0]
[1737182028203,21.16346569,234.1,234.01,25.37376569]
[1737182028560,21.16346569,234.1,234.04,20.0]
[1737182028873,21.10046569,234.06,233.97,25.37436569]
[1737182029276,21.10046569,234.06,234.0,20.0]
[1737182029775,21.10046569,234.04,233.95,21.10046569]
[1737182029953,21.10046569,234.06,233.97,21.10046569]
[1737182030968,0.0001,234.1,234.05,21.10046569]
[1737182031174,21.10046569,234.25,234.09,21.10046569]
[1737182031377,21.10046569,234.25,234.07,12.6463]
[1737182031378,21.10046569,234.25,234.17,21.10046569]
[1737182031687,21.10046569,234.27,234.2,20.0]
[1737182031844,21.10046569,234.27,234.11,14.9501]
[1737182032051,21.10046569,234.23,234.13,21.10046569]
[1737182032251,21.10046569,234.19,234.09,21.10046569]
[1737182032471,21.10046569,234.17,234.09,21.10046569]
[1737182032688,21.10046569,234.17,234.09,25.37216569]
[1737182032856,21.10046569,234.17,234.12,20.0]
[1737182033457,34.14077441,234.17,234.09,4.2717]
[1737182033678,34.14077441,234.11,234.02,34.14077441]
[1737182033855,34.14077441,234.11,234.03,4.2729]
[1737182034062,34.14077441,234.09,234.01,4.2732]
[1737182034260,34.14077441,234.05,233.96,34.14077441]
[1737182034491,34.14077441,234.05,233.96,38.41487441]
[1737182034980,34.14077441,234.08,233.98,34.14077441]
[1737182035491,34.14077441,234.06,233.98,34.14077441]
[1737182035792,34.14077441,234.08,233.98,34.14077441]
[1737182035953,34.14077441,234.08,233.99,4.2736]
[1737182036157,34.14077441,234.1,234.03,20.0]
[1737182036585,34.14077441,234.1,234.05,20.0]
[1737182037179,34.14077441,234.08,233.99,4.2736]
[1737182037388,34.14077441,234.06,233.96,34.14077441]
[1737182037850,34.14077441,234.06,233.99,20.0]
[1737182038053,34.14077441,234.06,233.98,4.2737]
[1737182038452,34.14077441,234.06,233.99,20.0]
[1737182038855,34.14077441,234.12,233.89,30.7853393]
[1737182038856,34.14077441,234.04,233.94,38.41527441]
[1737182039083,34.14077441,234.02,233.94,38.41527441]
[1737182039878,34.14077441,233.95,233.84,34.14077441]
[1737182040084,34.14077441,233.93,233.85,4.2762]
[1737182040471,34.14077441,233.93,233.75,27.45575037]
[1737182040472,34.14077441,233.89,233.8,34.14077441]
[1737182040667,34.14077441,233.9,233.8,34.14077441]
[1737182040871,34.14077441,233.92,233.82,34.14077441]
[1737182041071,34.14077441,233.92,233.84,34.14077441]
[1737182041472,34.14077441,233.94,233.84,34.14077441]
[1737182042081,34.14077441,233.94,233.87,20.0]
[1737182042288,34.14077441,233.98,233.89,54.14077441]
[1737182042594,34.14077441,233.96,233.87,34.14077441]
[1737182042770,34.14077441,233.94,233.85,34.14077441]
[1737182042971,34.14077441,233.96,233.87,34.14077441]
[1737182043399,34.14077441,233.9,233.82,4.2767]
[1737182043690,34.14077441,233.9,233.81,38.44757441]
[1737182043993,34.14077441,233.92,233.83,34.14077441]
[1737182044292,34.14077441,233.88,233.81,0.03]
[1737182044468,4.275,233.92,233.81,0.03]
[1737182044469,34.14077441,233.86,233.81,0.03]
[1737182044788,34.14077441,233.82,233.81,0.03]
[1737182044984,34.14077441,233.84,233.81,0.03]
[1737182045675,34.14077441,233.93,233.83,34.14077441]
[1737182046172,34.14077441,233.93,233.83,20.0]
[1737182046356,34.14077441,233.93,233.83,54.14077441]
[1737182046560,34.14077441,233.93,233.85,34.14077441]
[1737182047173,34.14077441,233.89,233.81,0.03]
[1737182047370,34.14077441,233.86,233.81,0.03]
[1737182048078,34.14077441,233.88,233.81,0.03]
[1737182048279,6.80076539,233.92,233.81,0.03]
[1737182048280,34.14077441,233.84,233.81,0.03]
[1737182048487,34.14077441,233.88,233.81,0.03]
[1737182049295,34.14077441,233.9,233.81,34.17077441]
[1737182049466,4.2748,233.93,233.81,34.17077441]
[1737182049467,34.14077441,233.92,233.83,34.14077441]
[1737182050088,34.14077441,233.9,233.81,34.17077441]
[1737182050270,34.14077441,233.9,233.81,38.44767441]
[1737182050791,34.14077441,233.92,233.83,34.14077441]
[1737182050983,34.14077441,233.94,233.85,34.14077441]
[1737182051664,34.14077441,233.94,233.81,14.9993]
[1737182051665,34.14077441,234.01,233.91,34.14077441]
[1737182051859,34.14077441,233.99,233.91,34.14077441]
[1737182052088,34.14077441,233.95,233.86,34.14077441]
[1737182052286,34.14077441,233.92,233.83,34.14077441]
[1737182052992,34.14077441,233.94,233.85,34.14077441]
[1737182053210,34.14077441,233.97,233.89,34.14077441]
[1737182053368,34.14077441,233.99,233.89,34.14077441]
[1737182053569,34.14077441,234.01,233.91,34.14077441]
[1737182054603,34.14077441,234.01,233.94,20.0]
[1737182055583,34.14077441,234.03,233.96,20.0]
[1737182055786,34.14077441,234.1,234.01,34.14077441]
[1737182056092,12.83,234.23,233.92,36.3371]
[1737182056093,34.14077441,234.2,234.12,20.0]
[1737182056287,34.14077441,234.22,234.12,34.14077441]
[1737182056905,34.14077441,234.18,234.1,34.14077441]
[1737182057207,34.14077441,234.16,234.09,4.2718]
[1737182057393,34.14077441,234.18,234.09,4.2718]
[1737182057590,34.14077441,234.18,234.08,34.14077441]
[1737182057796,34.14077441,234.14,234.06,34.14077441]
[1737182058192,34.14077441,234.18,234.08,34.14077441]
[1737182058392,34.14077441,234.2,234.1,34.14077441]
[1737182058609,34.14077441,234.22,234.14,34.14077441]
[1737182058994,34.14077441,234.22,234.13,4.2711]
[1737182059708,34.14077441,234.24,234.17,20.0]
[1737182060011,34.14077441,234.24,234.14,34.14077441]
[1737182060012,34.14077441,234.22,234.13,4.2711]
[1737182060393,34.14077441,234.22,234.14,34.14077441]
[1737182060695,34.14077441,234.24,234.16,34.14077441]
[1737182060902,34.14077441,234.24,234.07,0.64053102]
[1737182060903,34.20377441,234.28,234.23,20.0]
[1737182061214,34.20377441,234.28,234.22,4.2693]
[1737182061908,34.20377441,234.28,234.22,24.2693]
[1737182062494,0.063,234.28,234.22,24.2693]
[1737182063023,34.14077441,234.27,234.22,24.2693]
[1737182063531,34.14077441,234.25,234.22,24.2693]
[1737182063699,34.14077441,234.27,234.22,24.2693]
[1737182063895,0.063,234.28,234.26,20.0]
[1737182064115,0.063,234.28,234.27,20.0]
[1737182064923,0.063,234.28,234.23,34.14077441]
[1737182065225,34.14077441,234.27,234.22,4.2693]
[1737182065406,34.14077441,234.23,234.18,4.2702]
[1737182065604,34.14077441,234.21,234.18,4.2702]
[1737182065918,34.14077441,234.21,234.12,34.14077441]
[1737182066118,0.063,234.28,234.09,2.67135419]
[1737182066119,34.14077441,234.19,234.1,44.81977441]
[1737182066319,34.14077441,234.19,234.09,4.2718]
[1737182066528,34.14077441,234.19,234.09,38.41257441]
[1737182066731,34.14077441,234.15,234.09,4.2718]
[1737182067302,34.14077441,234.17,234.09,4.2718]
[1737182067518,34.14077441,234.17,234.09,38.41257441]
[1737182067927,34.14077441,234.19,234.09,38.41257441]
[1737182068430,34.14077441,234.23,234.13,34.14077441]
[1737182068602,34.14077441,234.21,234.13,34.14077441]
[1737182068921,34.14077441,234.21,234.14,20.0]
[1737182069332,34.14077441,234.21,234.11,34.14077441]
[1737182070003,34.14077441,234.21,234.13,34.14077441]
[1737182070207,34.14077441,234.23,234.13,34.14077441]
[1737182070430,34.20377441,234.28,234.2,20.0]
[1737182070630,0.063,234.28,234.21,34.14077441]
[1737182071125,34.14077441,234.24,234.16,4.2705]
[1737182071309,34.14077441,234.24,234.15,38.41147441]
[1737182071507,34.20377441,234.28,234.19,34.14077441]
[1737182071702,34.14077441,234.22,234.13,34.14077441]
[1737182071903,34.14077441,234.2,234.13,4.2711]
[1737182072118,34.14077441,234.22,234.13,38.41187441]
[1737182072305,34.14077441,234.24,234.15,34.14077441]
[1737182072513,34.14077441,234.22,234.14,4.2708]
[1737182072820,34.14077441,234.2,234.13,4.271]
[1737182073020,34.14077441,234.18,234.1,4.2715]
[1737182073221,34.14077441,234.23,234.14,34.14077441]
[1737182073922,34.14077441,234.23,234.17,20.0]
[1737182074125,34.14077441,234.25,234.19,20.0]
[1737182074313,34.14077441,234.23,234.14,34.14077441]
[1737182074517,34.14077441,234.21,234.15,4.2707]
[1737182075107,34.14077441,234.19,234.12,4.2712]
[1737182075744,34.14077441,234.22,234.13,20.0]
[1737182075918,34.14077441,234.2,234.13,20.0]
[1737182076336,34.14077441,234.22,234.13,20.0]
[1737182076634,34.14077441,234.22,234.14,38.41167441]
[1737182076840,34.14077441,234.26,234.18,34.14077441]
[1737182077526,0.063,234.28,234.14,49.08897441]
[1737182077527,34.14077441,234.23,234.14,49.08897441]
[1737182077706,34.14077441,234.2,234.11,38.41217441]
[1737182077912,34.14077441,234.18,234.11,4.2714]
[1737182078605,34.14077441,234.22,234.13,34.14077441]
[1737182078826,34.14077441,234.22,234.14,4.2709]
[1737182079606,34.14077441,234.22,234.11,4.2714]